Cogmind - Beta 17 @@@ ROGUE MODE // 2026.07.22 @ 17:35:45 Player: teag2 Result: Self-destructed Performance ------------- Evolutions (3) 1500 Regions Visited (9) 1800 Robots Destroyed (102) 510 Value Destroyed (4328) 4328 Prototype IDs (25) 500 Alien Tech Used (0) 0 Bonus (1958) 1958 TOTAL SCORE: 10596 Bonus ------- High Alert Combat Kills 198 Follower Combat Kills 60 Entered Garrisons 400 Used RIF Installer 1000 Aligned with FarCom 300 Cogmind --------- Core Integrity 505/700 Matter 250/300 Energy 81/100 System Corruption 1% Temperature Cool (0) Movement Core (100) Ox1 Location -7/Garrison Parts ------- > --- POWER (1) -------- (None) > --- PROPULSION (4) --- (None) > --- UTILITY (6) ------ Medium Storage Unit Advanced Weight Redist. System Advanced Visual Processing Unit Relay Coupler [Grunt] (27) Relay Coupler [Sentry] (11) > --- WEAPON (2) ------- Longsword +1 > --- INVENTORY (10) --- VTOL Module Compact Matter Pod (150) Improved Signal Interpreter Improved Light Armor Plating Relay Coupler [Brawler] (22) Relay Coupler [Duelist] (29) Relay Coupler [Behemoth] (9) Improved Grenade Launcher Peak State ------------ > --- POWER ------------ Heavy Deuterium Engine > --- PROPULSION ------- Flight Unit Improved Flight Unit Cesium-ion Thruster Cesium-ion Thruster > --- UTILITY ---------- Medium Storage Unit Advanced Visual Processing Unit Improved Terrain Scanner Hacking Suite Relay Coupler [NC] Relay Coupler [Sentry] > --- WEAPON ----------- Remote Datajack Longsword +1 > --- INVENTORY -------- Light Deuterium Engine Flight Unit Flight Unit VTOL Module Advanced Weight Redist. System Improved Signal Interpreter Improved Light Armor Plating Hardlight Generator Improved Grenade Launcher [Rating: 44] Favorites ----------- Power Light Nuclear Core Engine Ion Engine Power Core Light Nuclear Core Propulsion Light Treads Treads Light Treads Flight Unit Cesium-ion Thruster Utility Huge Storage Unit Device Improved Heat Sink Storage Huge Storage Unit Processor Advanced Visual Processing Unit Hackware Relay Coupler [NC] Protection Light Armor Plating Weapon Light Assault Rifle Energy Gun Beam Rifle Energy Cannon Beam Cannon Ballistic Gun Light Assault Rifle Ballistic Cannon Light Cannon Launcher Grenade Launcher Special Weapon Remote Datajack Slashing Weapon Longsword +1 Special Melee Weapon Datajack Build | -11 -10 -10 -10 -9 -8 -8 -8 -7 -7 ------- Run | Yrd Mat Min Exi Min Mat Gar Mat Fac Gar Slots Evolved 6 | . . . . . 4 . . 2 . Power . | . . . . . . . . . . Propulsion 2 | . . . . . 2 . . . . Utility 4 | . . . . . 2 . . 2 . Weapon . | . . . . . . . . . . Parts Attached 83 | 6 10 2 2 . 20 13 12 9 9 Power 9 | 1 1 . . . 4 . . 2 1 Engine 6 | 1 . . . . 3 . . 2 . Core 3 | . 1 . . . 1 . . . 1 Reactor . | . . . . . . . . . . Propulsion 27 | 2 2 1 . . 7 7 4 2 2 Treads 19 | 2 2 1 . . 6 7 . 1 . Leg . | . . . . . . . . . . Wheel . | . . . . . . . . . . Hover . | . . . . . . . . . . Flight 8 | . . . . . 1 . 4 1 2 Utility 31 | 1 6 . . . 6 3 5 4 6 Device 10 | . 1 . . . 4 . 3 1 1 Storage 5 | 1 4 . . . . . . . . Processor 3 | . . . . . . 1 . 2 . Hackware 8 | . . . . . . . 2 1 5 Protection 5 | . 1 . . . 2 2 . . . Artifact . | . . . . . . . . . . Weapon 16 | 2 1 1 2 . 3 3 3 1 . Energy Gun 1 | . . 1 . . . . . . . Energy Cannon 1 | . . . . . 1 . . . . Ballistic Gun 3 | 2 . . . . . 1 . . . Ballistic Cannon 5 | . 1 . 1 . 1 2 . . . Launcher 2 | . . . . . 1 . 1 . . Special Weapon 1 | . . . . . . . . 1 . Impact Weapon . | . . . . . . . . . . Slashing Weapon 1 | . . . 1 . . . . . . Piercing Weapon . | . . . . . . . . . . Special Melee Weapon 2 | . . . . . . . 2 . . Unidentified Prototypes 2 | . . . . . 1 . . 1 . Parts Lost 35 | . 5 . . . 5 11 3 . 11 Power 7 | . 1 . . . 3 1 . . 2 Propulsion 11 | . 2 . . . 1 2 . . 6 Utility 8 | . 1 . . . 1 3 1 . 2 Weapon 9 | . 1 . . . . 5 2 . 1 Highest Loss Streak 7 | . 3 . . . 2 7 1 . 6 To Critical Strikes . | . . . . . . . . . . Average Backups 16 | . 6 15 23 22 22 22 14 9 8 Power 1 | . 1 2 3 3 1 1 1 1 . Propulsion 5 | . 1 4 9 9 8 8 5 3 . Utility 6 | . 2 5 7 7 7 9 7 4 6 Weapon 3 | . 1 3 4 3 5 2 . . 1 Tool/Special . | . . . . . . . . . . Unused Backups 19 | . 1 2 1 . 5 1 2 . 7 Power 1 | . . . . . 1 . . . . Propulsion 5 | . . 1 . . 3 . 1 . . Utility 10 | . 1 1 . . . . 1 . 7 Weapon 3 | . . . 1 . 1 1 . . . Tool/Special . | . . . . . . . . . . Average Slot Usage (%) 92 | . 93 100 77 100 95 92 88 97 81 Engine 3 | . 5 . . . 6 1 9 7 4 Core 7 | . 8 14 14 14 2 7 . . 2 Treads 27 | . 26 28 28 28 35 33 15 . . Flight 2 | . . . . . . . 19 30 24 Device 8 | . 4 . . . 15 13 9 6 5 Storage 11 | . 14 14 14 14 9 9 9 7 7 Hackware 1 | . . . . . . . 7 17 15 Protection 8 | . 5 14 14 14 7 8 3 . . Energy Gun 2 | . . . . . 7 2 . . . Energy Cannon 2 | . . . . . 7 4 . . . Ballistic Gun 7 | . 24 14 . . . 1 . . . Ballistic Cannon 5 | . 3 14 . 28 2 6 4 . . Slashing Weapon 1 | . . . 6 . . 1 7 7 5 Peak Build Rating 44 | 6 10 13 20 14 30 25 31 44 42 Average Rating 17 | 4 7 11 14 13 20 22 25 39 32 On Entrance 17 | . 6 9 13 13 14 30 25 25 37 Avg Prop Armor Cover (%) 16 | . 16 . . . . . . . . Naked Turns . | . . . . . . . . . . Heaviest Build 101 | 13 89 92 94 94 99 101 97 22 24 Greatest Support 80 | 40 40 40 40 40 80 80 80 26 29 Greatest Overweight (x) 29 | . 29 2 2 2 2 2 1 1 1 Average Overweight (x) . | . . 1 2 2 1 1 . . . Largest Inventory Capacity 25 | 8 25 25 25 25 25 25 25 10 10 Average Capacity 20 | 6 14 21 25 25 25 25 17 10 10 Most Carried 25 | 4 11 24 25 24 25 25 22 10 10 Average Carried 17 | . 6 16 24 23 23 23 14 9 8 Final Capacity 25 | 8 15 25 25 25 25 25 10 10 10 Final Carried 25 | . 9 24 23 24 25 21 10 8 8 Class Distribution -------------------- 47% | Mutant 43% | Scavenger-Mutant 3% | Scout Dominant Class ---------------- Mutant | -10/Materials Mutant | -10/Mines Mutant | -10/Exiles Mutant | -9/Mines Scavenger-Mutant | -8/Materials Scavenger-Mutant | -8/Garrison Scavenger-Mutant | -8/Materials Scout | -7/Factory Sprinter | -7/Garrison Resources | -11 -10 -10 -10 -9 -8 -8 -8 -7 -7 ----------- Run | Yrd Mat Min Exi Min Mat Gar Mat Fac Gar Matter Collected 2821 | 183 629 227 . . 384 526 364 304 204 Remotely . | . . . . . . . . . . Salvage Created 3273 | . 746 51 . . 1164 505 93 440 274 Parts 208 | . 34 6 . . 55 57 15 26 15 Haulers Intercepted 6 | . 2 . . . 4 . . . . Recyclers Shooed 2 | . . . . . 2 . . . . Parts Field Recycled . | . . . . . . . . . . Retrieved Matter . | . . . . . . . . . . Parts Self-Destructed . | . . . . . . . . . . Prevented . | . . . . . . . . . . Parts Restored . | . . . . . . . . . . Kills | -11 -10 -10 -10 -9 -8 -8 -8 -7 -7 ------- Run | Yrd Mat Min Exi Min Mat Gar Mat Fac Gar Combat Hostiles Destroyed 79 | . 15 1 . . 20 27 4 4 8 Melee 10 | . . . . . . 1 1 4 4 Guns 21 | . 13 . . . 5 3 . . . Cannons 23 | . 2 1 . . 6 14 . . . AOE 23 | . . . . . 7 9 3 . 4 Classes Destroyed 15 | . 3 1 . . 7 3 . 1 . Worker 4 | . . . . . 1 . . 3 . Builder 2 | . . . . . 1 . . 1 . Tunneler 1 | . . . . . . . . 1 . Hauler 6 | . 2 . . . 4 . . . . Recycler 1 | . . . . . 1 . . . . Operator 3 | . . . . . 1 . 2 . . Watcher 5 | . 1 . . . 2 . . 2 . Swarmer 25 | . . . . . 3 15 3 . 4 Cutter 2 | . . . . . . 2 . . . Grunt 32 | . 15 . . . 10 2 . . 5 Brawler 2 | . . . . . 2 . . . . Duelist 1 | . . . . . . 1 . . . Sentry 14 | . . 1 . . 4 5 1 3 . Hunter 2 | . . . . . 1 . . 1 . Programmer 2 | . . . . . . 2 . . . Best Kill Streak 8 | . 2 1 . . 8 8 3 3 4 Combat Bots Only 8 | . 2 1 . . 7 8 3 2 4 Max Kills in Single Turn 3 | . 1 1 . . 2 3 3 1 2 Gunslinging . | . . . . . . . . . . Exploded 3 | . . . . . 2 3 3 . 2 Melee 1 | . . . . . . 1 1 1 1 Uniques/NPCs Destroyed . | . . . . . . . . . . Combat | -11 -10 -10 -10 -9 -8 -8 -8 -7 -7 -------- Run | Yrd Mat Min Exi Min Mat Gar Mat Fac Gar Hostile Shots Fired 467 | . 82 8 . . 80 160 16 18 103 Missed 143 | . 19 2 . . 24 45 5 8 40 Hits 324 | . 63 6 . . 56 115 11 10 63 Melee 15 | . . 4 . . 2 9 . . . Projectile 309 | . 63 2 . . 54 106 11 10 63 AOE 1 | . . . . . . 1 . . . Critical Strikes 11 | . . . . . 2 8 . . 1 Part Disruptions 3 | . 2 . . . . 1 . . . Damage Taken 5057 | . 944 152 . . 986 1782 376 79 738 Core 908 | . 172 34 . . 115 236 156 11 184 Absorbed by Shields 26 | . . . . . 8 . . . 18 Redirected to Shielding 53 | . . . . . 53 . . . . Regen/Repaired (Parts) 127 | . 127 . . . . . . . . Core Remaining (%) 41 | 100 . . . 17 . . 7 . . Volleys Fired 274 | . 79 6 . . 79 72 6 13 19 Largest 2 | . 2 2 . . 2 2 1 1 1 Hottest 116 | . 50 50 . . 116 116 36 5 36 Shots Fired 477 | . 157 13 . . 151 117 7 13 19 Gun 255 | . 144 6 . . 68 37 . . . Cannon 164 | . 13 7 . . 76 67 1 . . Launcher 29 | . . . . . 7 13 6 . 3 Special 29 | . . . . . . . . 13 16 Kinetic 249 | . 157 13 . . 8 70 1 . . Thermal 170 | . . . . . 136 34 . . . Explosive 29 | . . . . . 7 13 6 . 3 Electromagnetic . | . . . . . . . . . . Robot Hit Streak 11 | . 11 3 . . 9 10 . 3 4 Robot Miss Streak 6 | . 5 2 . . 4 6 1 3 1 Penetration Max . | . . . . . . . . . . Secondary Targets 1 | . 1 . . . . . . . . Max Gunslinging Chain 1 | . 1 . . . . . . . . Shots Hit Robots 328 | . 107 8 . . 100 59 9 22 23 Core Hits 176 | . 46 4 . . 57 42 2 10 15 Critical Kills 1 | . . . . . 1 . . . . Critical Parts Destroyed . | . . . . . . . . . . Critical Strikes 13 | . . . . . 7 3 . 1 2 Burn 5 | . . . . . 5 . . . . Meltdown 1 | . . . . . 1 . . . . Blast 3 | . . . . . 1 2 . . . Sever 4 | . . . . . . 1 . 1 2 Melee Attacks 58 | . . . . . 2 6 14 15 21 Impact . | . . . . . . . . . . Slashing 56 | . . . . . 2 6 12 15 21 Piercing . | . . . . . . . . . . Sneak Attacks 16 | . . . . . . . 3 11 2 Combat Hostiles 1 | . . . . . . . . 1 . Follow-up Attacks . | . . . . . . . . . . Damage Inflicted 8003 | . 1131 86 . . 2053 1991 696 1198 848 Guns 2055 | . 982 32 . . 725 316 . . . Cannons 1934 | . 139 51 . . 899 845 . . . Explosions 1698 | . . . . . 420 709 259 . 310 Melee 2294 | . . . . . . 121 437 1198 538 Ramming 22 | . 10 3 . . 9 . . . . Kinetic 2083 | . 1121 83 . . 109 770 . . . Thermal 2165 | . . . . . 1515 391 259 . . Explosive 1439 | . . . . . 420 709 . . 310 Electromagnetic . | . . . . . . . . . . Impact . | . . . . . . . . . . Slashing 2294 | . . . . . . 121 437 1198 538 Piercing . | . . . . . . . . . . Highest Corruption 11 | . 5 5 5 5 . 11 11 . . Average Corruption 6 | . 5 5 5 5 . 10 11 . . Corruption Purged . | . . . . . . . . . . Corruption Blocked . | . . . . . . . . . . Effects 121 | . 23 29 13 6 . 37 13 . . Message Errors 24 | . 4 4 5 1 . 8 2 . . Matter Fused 27 | . 4 8 2 1 . 8 4 . . Heat Flow Errors 11 | . . 4 2 1 . 4 . . . Energy Discharges 18 | . 5 3 3 1 . 5 1 . . Parts Rejected 2 | . 1 . . . . . 1 . . Parts Fused 5 | . 1 1 . . . 2 1 . . Data Loss (minor) 11 | . 2 5 1 . . 2 1 . . Data Loss (major) 7 | . 2 2 . 2 . 1 . . . Misfires 6 | . 1 1 . . . 3 1 . . Alerts 3 | . 1 1 . . . 1 . . . Misdirections 2 | . . . . . . . 2 . . Weapon Failures 5 | . 2 . . . . 3 . . . Overload Shots . | . . . . . . . . . . Overflow Damage 537 | . . . . . 25 44 292 157 19 Projectiles 40 | . . . . . 3 37 . . . Explosions 226 | . . . . . 22 . 185 . 19 Melee 271 | . . . . . . 7 107 157 . Knockbacks 11 | . 1 2 . . 1 7 . . . Impact . | . . . . . . . . . . Kinetic 11 | . 1 2 . . 1 7 . . . Secondary . | . . . . . . . . . . Self-Inflicted Damage 450 | . . . . . 30 181 239 . . Shots 9 | . . . . . 1 5 3 . . Rammed 5 | . 3 1 . . 1 . . . . Targets Rammed 5 | . 3 1 . . 1 . . . . Kicked . | . . . . . . . . . . Crushed . | . . . . . . . . . . Highest Temperature 285 | . 148 241 252 285 23 212 . . 6 Average Temperature 64 | . 36 80 130 147 10 90 . . 4 Received Heat Transfer 1217 | . 429 18 . . 338 171 36 18 207 Effects 1 | . . . . 1 . . . . . Interference 1 | . . . . 1 . . . . . Siege Activations . | . . . . . . . . . . Martial Activations . | . . . . . . . . . . Shielding Activations . | . . . . . . . . . . Robots Disrupted . | . . . . . . . . . . Combat Hostiles . | . . . . . . . . . . Robots Corrupted . | . . . . . . . . . . Combat Hostiles . | . . . . . . . . . . Parts Fried . | . . . . . . . . . . Impact Corruptions . | . . . . . . . . . . Robots Melted 2 | . . . . . 2 . . . . Combat Hostiles 2 | . . . . . 2 . . . . Parts Melted 14 | . . . . . 14 . . . . Heat Transferred 4729 | . . . . . 3885 694 150 . . Parts Sabotaged . | . . . . . . . . . . Parts Stolen . | . . . . . . . . . . Parts Stripped . | . . . . . . . . . . Power Chain Reactions . | . . . . . . . . . . Alert | -11 -10 -10 -10 -9 -8 -8 -8 -7 -7 ------- Run | Yrd Mat Min Exi Min Mat Gar Mat Fac Gar Maximum Alert Level 3 | . . . . . 1 3 2 1 1 Low Security (%) 65 | 100 100 100 . 100 82 9 . 4 34 Level 1 16 | . . . . . 17 21 . 95 65 Level 2 12 | . . . . . . 42 100 . . Level 3 5 | . . . . . . 26 . . . Level 4 . | . . . . . . . . . . Level 5 . | . . . . . . . . . . High Security . | . . . . . . . . . . Max Security . | . . . . . . . . . . Peak Influence 987 | . 154 40 . . 243 987 643 292 392 Initial 481 | . . 40 . . . 93 481 287 60 Average 208 | . 43 2 . . 142 562 552 248 261 Influence Increases 3242 | . 540 20 . . 729 1004 320 187 442 Destroy 0b10 Robot/C 1640 | . 300 20 . . 440 540 80 80 180 Destroy 0b10 Robot/NC 110 | . 15 . . . 50 . 10 35 . Destroy Leader 312 | . 86 . . . 112 30 20 44 20 Allied During Kill 24 | . . . . . 15 . . 7 2 Successful Hack 108 | . 34 . . . 34 . 16 6 18 Select Force Hacks 60 | . 60 . . . . . . . . Disable Machine 75 | . . . . . 15 . 60 . . Anti-Garrison Action 450 | . . . . . . 350 . . 100 Destroy Structure 178 | . . . . . 33 54 59 . 32 Partial Spotted 30 | . . . . . . . 15 15 . Lose Combat Pursuer 255 | . 45 . . . 30 30 60 . 90 Influence Decreases 2910 | . 435 125 . . 585 161 676 732 196 Entered New Map 992 | . . 65 . . . 51 506 344 26 Time Decay 1293 | . 395 60 . . 500 . 140 198 . Lost Part 330 | . 40 . . . 40 110 30 . 110 Lost Ally 145 | . . . . . 45 . . 40 60 Purge Threat 150 | . . . . . . . . 150 . Squads Dispatched 12 | . 5 . . . 2 . 3 2 . Investigation 3 | . 3 . . . . . . . . Extermination 1 | . . . . . . . . 1 . Reinforcement 6 | . 2 . . . 1 . 2 1 . Assault 1 | . . . . . . . 1 . . Garrison 1 | . . . . . 1 . . . . Intercept . | . . . . . . . . . . Searches Triggered . | . . . . . . . . . . Construction Impeded 1 | . . . . . . . . 1 . Haulers Reinforced . | . . . . . . . . . . Active Scanning Responses . | . . . . . . . . . . Cargo Convoy Interrupts . | . . . . . . . . . . Stealth | -11 -10 -10 -10 -9 -8 -8 -8 -7 -7 --------- Run | Yrd Mat Min Exi Min Mat Gar Mat Fac Gar Distress Signals 10 | . 2 1 . . 4 . 3 . . Communications Jammed . | . . . . . . . . . . Distress Signals . | . . . . . . . . . . Times Spotted 142 | . 29 3 . . 37 30 13 6 24 Peak Tracking Total 8 | . 4 2 . . 6 4 8 1 5 Tactical Retreats 11 | . 3 . . . 2 1 3 . 2 Traps | -11 -10 -10 -10 -9 -8 -8 -8 -7 -7 ------- Run | Yrd Mat Min Exi Min Mat Gar Mat Fac Gar Traps Triggered 10 | . 4 . . . 1 4 . . 1 Indirectly . | . . . . . . . . . . Trap Hack Attempts . | . . . . . . . . . . Triggered . | . . . . . . . . . . Disarmed . | . . . . . . . . . . Reprogrammed . | . . . . . . . . . . Reused . | . . . . . . . . . . Traps Extracted . | . . . . . . . . . . Installed . | . . . . . . . . . . Triggered . | . . . . . . . . . . Machines | -11 -10 -10 -10 -9 -8 -8 -8 -7 -7 ---------- Run | Yrd Mat Min Exi Min Mat Gar Mat Fac Gar Machines Disabled 13 | . . . . . 1 6 4 . 2 Max in Single Turn 3 | . . . . . 1 1 3 . 1 Garrison Relay 7 | . . . . . . 5 . . 2 Machines Repaired . | . . . . . . . . . . Machines Dismantled . | . . . . . . . . . . Machines Sabotaged . | . . . . . . . . . . Overloaded Fab Kills . | . . . . . . . . . . Hacking | -11 -10 -10 -10 -9 -8 -8 -8 -7 -7 --------- Run | Yrd Mat Min Exi Min Mat Gar Mat Fac Gar Machines Accessed 28 | . 9 . 1 . 7 1 3 6 1 Terminals 18 | . 6 . . . 5 1 2 3 1 Fabricators 1 | . . . . . . . . 1 . Repair Stations 1 | . 1 . . . . . . . . Recycling Units 3 | . 2 . . . . . . 1 . Scanalyzers 2 | . . . . . 1 . 1 . . Garrison Access 2 | . . . . . 1 . . 1 . Total Hacks 61 | . 19 . 1 . 17 2 6 14 2 Successful 35 | . 13 . 1 . 10 . 4 5 2 Failed 25 | . 6 . . . 6 2 2 9 . Catastrophic 5 | . 2 . . . 1 . 1 1 . Database Lockouts 1 | . . . . . 1 . . . . Manual 42 | . 17 . 1 . 14 . 4 5 1 Terminals 44 | . 15 . . . 14 2 4 7 2 Fabricators 2 | . . . . . . . . 2 . Repair Stations 2 | . 2 . . . . . . . . Recycling Units 6 | . 2 . . . . . . 4 . Scanalyzers 4 | . . . . . 2 . 2 . . Garrison Access 2 | . . . . . 1 . . 1 . Terminal Hacks 9 | . 2 . 1 . 1 . 1 2 2 Level Access Points 1 | . . . . . . . 1 . . Branch Access Points 1 | . . . . . . . . 1 . Emergency Access Points 1 | . . . . . . . . . 1 Terminal Index 2 | . 1 . . . 1 . . . . Recycling Unit Index 1 | . 1 . . . . . . . . Unreport Threat 1 | . . . . . . . . 1 . Garrison Registry 1 | . . . . . . . . . 1 Proto ID Catalog 1 | . . . 1 . . . . . . Fabricator Hacks 1 | . . . . . . . . 1 . Build 1 | . . . . . . . . 1 . Repair Station Hacks 2 | . 2 . . . . . . . . Scan Component 1 | . 1 . . . . . . . . Repair 1 | . 1 . . . . . . . . Recycling Unit Hacks . | . . . . . . . . . . Scanalyzer 3 | . . . . . 1 . 2 . . Retrieve Study 3 | . . . . . 1 . 2 . . Garrison Access Hacks 2 | . . . . . 1 . . 1 . Unlock Access 2 | . . . . . 1 . . 1 . Unauthorized Hacks 18 | . 9 . . . 7 . 1 1 . Terminals 16 | . 7 . . . 7 . 1 1 . Assimilate 1 | . . . . . . . 1 . . Botnet 4 | . 1 . . . 2 . . 1 . Operators 1 | . 1 . . . . . . . . Skim 10 | . 5 . . . 5 . . . . Fabricators . | . . . . . . . . . . Repair Stations . | . . . . . . . . . . Recycling Units 2 | . 2 . . . . . . . . Tunnel 2 | . 2 . . . . . . . . Scanalyzers . | . . . . . . . . . . Garrison Access . | . . . . . . . . . . Data Cores Recovered . | . . . . . . . . . . Used . | . . . . . . . . . . Hacking Detections 19 | . 5 . . . 4 1 3 6 . Full Trace Events 1 | . 1 . . . . . . . . Feedback Events . | . . . . . . . . . . Feedback Blocked . | . . . . . . . . . . Robot Schematics Acquired . | . . . . . . . . . . Robots Built . | . . . . . . . . . . Authchips . | . . . . . . . . . . Time 134 | . . . . . . . . 134 . Total Robot Build Rating . | . . . . . . . . . . Part Schematics Acquired . | . . . . . . . . . . Parts Built . | . . . . . . . . . . Authchips . | . . . . . . . . . . Time . | . . . . . . . . . . Total Part Build Rating . | . . . . . . . . . . Part Studies Acquired 3 | . . . . . 1 . 2 . . Parts Repaired 1 | . 1 . . . . . . . . Time 26 | . 26 . . . . . . . . Parts Recycled . | . . . . . . . . . . Recycled Matter . | . . . . . . . . . . Retrieved Matter . | . . . . . . . . . . Retrieved Components . | . . . . . . . . . . Parts Scanalyzed . | . . . . . . . . . . Part Schematics Acquired . | . . . . . . . . . . Parts Damaged . | . . . . . . . . . . Bothacking | -11 -10 -10 -10 -9 -8 -8 -8 -7 -7 ------------ Run | Yrd Mat Min Exi Min Mat Gar Mat Fac Gar Used RIF Installer 2 | . . . . . . 1 . . 1 Program Shield 1 | . . . . . . . . . 1 Robots Hacked 15 | . . . . . . . . 6 9 Non-combat 3 | . . . . . . . . 3 . Combat 12 | . . . . . . . . 3 9 Robot Hacks Applied 18 | . . . . . . . . 8 10 parse_system 2 | . . . . . . . . 2 . drop_inventory 1 | . . . . . . . . 1 . find_recycling 1 | . . . . . . . . 1 . find_garrison 1 | . . . . . . . . 1 . spike_heat 1 | . . . . . . . . . 1 overload_power 1 | . . . . . . . . . 1 reboot_system 4 | . . . . . . . . 3 1 go_dormant 1 | . . . . . . . . . 1 overwrite_iff 5 | . . . . . . . . . 5 formatsys_high 1 | . . . . . . . . . 1 Relay Couplers Released 27 | . . . . . . 17 . . 10 Machine Destruction 27 | . . . . . . 17 . . 10 Attached 7 | . . . . . . . 2 . 5 Fabnet Peak Effective % . | . . . . . . . . . . Robots Rewired 2 | . . . . . . . . 2 . Allies Hacked . | . . . . . . . . . . Hacks Repelled . | . . . . . . . . . . Allies | -11 -10 -10 -10 -9 -8 -8 -8 -7 -7 -------- Run | Yrd Mat Min Exi Min Mat Gar Mat Fac Gar Total Allies 12 | . . . . 3 . . 1 2 6 Largest Group 3 | . . . . 3 3 . 1 3 1 Highest-Rated Group 40 | . . . . 40 40 . 10 34 29 Highest-Rated Ally 29 | . . . . 16 16 . 10 12 29 Total Orders 2 | . . . . . . . . 2 . STAY 1 | . . . . . . . . 1 . FOLLOW 1 | . . . . . . . . 1 . Ally Attacks 43 | . . . . . 18 . . 10 15 Total Damage 464 | . . . . . 220 . . 61 183 Kills 3 | . . . . . 2 . . . 1 Allies Corrupted . | . . . . . . . . . . Allies Melted . | . . . . . . . . . . Intel | -11 -10 -10 -10 -9 -8 -8 -8 -7 -7 ------- Run | Yrd Mat Min Exi Min Mat Gar Mat Fac Gar Active Infowar (turns) 667 | . . . . . . . 1 388 278 Optics 666 | . . . . . . . . 388 278 Terrain 305 | . . . . . . . . 305 . ECM 1 | . . . . . . . 1 . . Robot Analysis Total . | . . . . . . . . . . Derelict Logs Recovered 3 | . . 1 . 2 . . . . . Drone Launches . | . . . . . . . . . . Drone Recoveries . | . . . . . . . . . . Exploration | -11 -10 -10 -10 -9 -8 -8 -8 -7 -7 ------------- Run | Yrd Mat Min Exi Min Mat Gar Mat Fac Gar Turns Passed 8467 | 73 1677 1130 707 222 2064 1620 295 401 278 Spaces Moved 4193 | 52 654 316 220 70 565 572 309 971 464 Core 26 | 19 5 . . . . . . . 2 Treads 2472 | 33 649 316 220 70 565 572 47 . . Legs . | . . . . . . . . . . Wheels . | . . . . . . . . . . Hover . | . . . . . . . . . . Flight 1695 | . . . . . . . 262 971 462 Fastest Speed 28 | 50 160 160 320 320 240 240 28 28 28 Average Speed 152 | 119 189 259 320 320 242 241 61 28 30 Slowest Speed 1500 | 160 1500 320 320 320 320 320 240 106 115 Overloaded Moves . | . . . . . . . . . . Propulsion Burnouts . | . . . . . . . . . . Robots Hopped 14 | . . . . . . . 2 12 . Potential Cave-ins 2 | . . . . . . . 2 . . Cave-ins Triggered . | . . . . . . . . . . Exploration Rate (%) 44 | 4 89 36 62 27 45 62 36 32 52 Regions Visited 9 Branch Regions 3 Pre-discovered Areas 4 | . 2 1 . . 1 . . . . Known Exits Taken 7 | . 1 1 1 1 1 . 1 1 . Unknown Exits Taken 1 | 1 . . . . . . . . . Scrap Searched 1 | . . 1 . . . . . . . Spaces Dug 9 | . . . . . 2 1 3 . 3 Terrain Destroyed 224 | . . . . . 34 41 120 . 29 Melee 9 | . . . . . 2 1 3 . 3 Projectile . | . . . . . . . . . . AOE 215 | . . . . . 32 40 117 . 26 Terrain Rammed . | . . . . . . . . . . Walls Destroyed . | . . . . . . . . . . Machines Disabled . | . . . . . . . . . . Actions | -11 -10 -10 -10 -9 -8 -8 -8 -7 -7 --------- Run | Yrd Mat Min Exi Min Mat Gar Mat Fac Gar Total 5772 | 63 950 616 225 70 1107 700 402 1068 571 Wait 921 | . 168 267 . . 395 6 29 38 18 Move 4155 | 51 653 315 219 69 564 570 304 946 464 Hop 14 | . . . . . . . 2 12 . Pick Up 104 | 6 25 19 . 1 21 12 5 4 11 Fast Attach 11 | . . . 1 . 1 . 2 6 1 Attach 80 | 6 16 . 1 . 12 13 14 5 13 Detach 31 | . 2 . 2 . 3 1 11 5 7 Swap 36 | . 2 4 1 . 16 8 3 1 1 Drop 51 | . 2 4 1 . 13 8 12 8 3 Fire 274 | . 79 6 . . 79 72 6 13 19 Melee 58 | . . . . . 2 6 14 15 21 Ram . | . . . . . . . . . . Kick . | . . . . . . . . . . Crush 5 | . 3 1 . . 1 . . . . Escape Stasis 17 | . . . . . . 4 . . 13 Rewire 15 | . . . . . . . . 15 . Trap . | . . . . . . . . . . Miscellaneous . | . . . . . . . . . . Route ------- -11/Scrapyard -10/Materials (discovered 6 exits: *Mat x3 / *Min x2 / *Sub) -10/Mines (discovered 4 exits: Mat x2 / *Exi / Sub) -10/Exiles (discovered 2 exits: *Min x2) -9/Mines -8/Materials (discovered 4 exits: Fac x3 / Gar) -8/Garrison (discovered 2 exits: *Mat x2) -8/Materials (discovered 3 exits: *Fac x3) -7/Factory (discovered 4 exits: [*Fac] / *Low x2 / Gar) -7/Garrison (discovered 3 exits: [*Fac x3]) History --------- Turn | Location | Event 5 | -11/Scrapyard | Discovered new exit (range 13) 74 | -11/Scrapyard | Entered Materials 212 | -10/Materials | Discovered new exit (range 15) 313 | -10/Materials | Build established: Mutant 316 | -10/Materials | Discovered new exit (range 15) 745 | -10/Materials | Core integrity fell below 50% 775 | -10/Materials | Lost 3 parts (1p1n1u) 926 | -10/Materials | Discovered new exit (range 16) 1519 | -10/Materials | Repaired Lgt. Treads 1566 | -10/Materials | Discovered new exit (range 6) 1627 | -10/Materials | Learned location of 2 exits from Mines 1682 | -10/Materials | Learned Storage trap positions 1694 | -10/Materials | Identified exit to Materials 1697 | -10/Materials | Learned 4 Recycling zone layouts 1698 | -10/Materials | Identified exit to Mines 1730 | -10/Materials | Learned 2 Mines zone layouts 1751 | -10/Materials | Entered Mines 1752 | -10/Mines | Met a Derelict testing a Signal Generator 1752 | -10/Mines | Identified exit to Subcaves 1753 | -10/Mines | Identified exit to Exiles 1755 | -10/Mines | Found Signal Generator 1809 | -10/Mines | Assembled infested the area 2143 | -10/Mines | Joined a pair of Derelicts in attacking an 0b10 outpost 2344 | -10/Mines | Core integrity fell below 20% 2834 | -10/Mines | Learned location of Mines (-9) 2869 | -10/Mines | Deemed a non-threat by the Exiles lab entrance 2881 | -10/Mines | Entered Exiles 2882 | -10/Exiles | Identified exit to Mines 2969 | -10/Exiles | Met 8R-AWN 3014 | -10/Exiles | Met EX-HEX 3100 | -10/Exiles | Met EX-BIN 3161 | -10/Exiles | Aligned with FarCom system 3164 | -10/Exiles | Given EX-Vault access code 3241 | -10/Exiles | Opened EX-Vault 3266 | -10/Exiles | Found Longsword +1 3335 | -10/Exiles | Warned to stay clear of 0b10 Research branches 3432 | -10/Exiles | Met EX-DEC 3588 | -10/Exiles | Left Exiles lab with Longsword +1 3588 | -10/Exiles | Entered Mines 3589 | -9/Mines | Identified exit to Materials 3595 | -9/Mines | Assisted by bots powering up and referring to "LRC-V3" 3705 | -9/Mines | YI-UF0 nonchalantly dropped a Grenade Launcher on the ground 3732 | -9/Mines | Learned Materials garrison access intel 3739 | -9/Mines | Learned 2 Materials zone layouts 3810 | -9/Mines | Entered Materials 3810 | -8/Materials | Accompanied by 3 allies 3810 | -8/Materials | Evolved 4 slots: Propulsion x2, Utility x2 3811 | -8/Materials | Identified exit to Factory 3812 | -8/Materials | Loaded intel: 1 garrison access location 4148 | -8/Materials | Destroyed 7 combat bots 4154 | -8/Materials | Lost 3 allies 4159 | -8/Materials | Build established: Scavenger-Mutant 4609 | -8/Materials | Central database locked down 5046 | -8/Materials | Garrison activated, responded to threat 5369 | -8/Materials | Learned location of 1 exit from Extension 5438 | -8/Materials | Learned 4 Lower Caves zone layouts 5497 | -8/Materials | Learned Storage machine intel 5591 | -8/Materials | Learned 2 Storage zone layouts 5624 | -8/Materials | Learned location of 1 exit from Storage 5682 | -8/Materials | Learned location of Zion (-7) 5788 | -8/Materials | Learned location of 1 exit from Recycling 5871 | -8/Materials | Identified exit to Garrison 5874 | -8/Materials | Entered Garrison 6062 | -8/Garrison | Triggered checkpoint 6078 | -8/Garrison | Garrison Relay disabled 6342 | -8/Garrison | Triggered checkpoint 6372 | -8/Garrison | Triggered checkpoint 6407 | -8/Garrison | Destroyed 8 combat bots 6500 | -8/Garrison | Discovered new exit (range 14) 6544 | -8/Garrison | Triggered checkpoint 6635 | -8/Garrison | Garrison Relay disabled 6679 | -8/Garrison | Garrison Relay disabled 6682 | -8/Garrison | Garrison Relay disabled 6730 | -8/Garrison | Core integrity fell below 50% 6733 | -8/Garrison | System corruption reached 10% 6772 | -8/Garrison | Lost 7 parts (1n3u3w) 7233 | -8/Garrison | Lost 3 parts (1p1n1w) 7245 | -8/Garrison | Destroyed 7 combat bots 7252 | -8/Garrison | Discovered new exit (range 8) 7371 | -8/Garrison | Installed Relay Interface Framework 7400 | -8/Garrison | Garrison Relay disabled 7494 | -8/Garrison | Entered Materials 7609 | -8/Materials | Core integrity fell below 20% 7789 | -8/Materials | Entered Factory 7789 | -7/Factory | Accompanied by 1 ally 7789 | -7/Factory | Evolved 2 slots: Utility x2 7909 | -7/Factory | Discovered new exit (range 19) 7995 | -7/Factory | Discovered new exit (range 7) 8006 | -7/Factory | Identified exit to Lower Caves 8173 | -7/Factory | Build established: Scout 8188 | -7/Factory | Identified exit to Garrison 8190 | -7/Factory | Entered Garrison 8246 | -7/Garrison | Triggered checkpoint 8270 | -7/Garrison | Discovered new exit (range 53) 8270 | -7/Garrison | Discovered new exit (range 46) 8270 | -7/Garrison | Discovered new exit (range 32) 8299 | -7/Garrison | Garrison Relay disabled 8308 | -7/Garrison | Triggered checkpoint 8401 | -7/Garrison | Expanded RIF knowledge: Program Shield 8416 | -7/Garrison | Garrison Relay disabled 8446 | -7/Garrison | Triggered checkpoint 8449 | -7/Garrison | Triggered checkpoint 8468 | -7/Garrison | Self-destructed Last Messages --------------- S-27 Virus destroyed. Lgt. Nuclear Core destroyed. Y-54 Guardian suffers critical hit (Destroy). Jacked S-27 Virus... >>overload_power Initiated overload sequence, T-4 to critical power. Y-54 Guardian destroyed. Imp. Flight Unit destroyed. Jacked S-27 Virus... >>go_dormant Shutting down primary systems. S-27 Virus Lgt. Nuclear Core critical detonation. S-27 Virus destroyed. P-70 Sage repels hacking attempt. VTOL Module destroyed. Relay Coupler [Swarmer] destroyed. Remote Datajack destroyed. Acquired VTOL Module. Map ----- +----------------------------------------------------+ | ????#"""#?????# #????????????????????????# #?????# | | ????#" "#?????# #????????????????????????# #?????# | | ????#" "#?????# #????????????????????????# #?????# | | ????#" "#?????# #????????????????????????# #?????# | | ????# ^#?????# #????????????????????????# #?????# | | ????## ##?????# #????????????????????????# #?????# | | ###### ######## ##########???????????????# #?????# | | ^ #???????????????#^#?????# | | ^ #????????###????#^#?????# | | ^ #??????###T######+####### | | ++"############ ###### #??????# | | #??????????# #????# #??????# | | ##??????????# #????# #??????# | | #???????????# ###### #??????# #######++##### | | #???????????# #??????# #?????# #???? | | ##??????????#+#####;^^^#??????# #?????# #???# | | [#??????????# #???#;^^^#??????# ####### #???# | | [#??????????# #???## #??????# + ##### | | [#??????????# #????# ######## ####### [%=% | | [#??????????# #????# ## ## #?????# ##### | | # ##??????????# #????# ## ## #?????# #??#" | | # ############# ###### ####### #??## | | # + + #???? | | ################# #### + #???? | | ????????????????# #??# [ ;# ## #### #####???? | | ????????????????# ####%[ @# ## #### #???????? | | ????????????????# + =%=* "s+ #???????? | | ????????????????#### = "s####???????? | | ???????######??????# % "s#??????????? | | ???????## #??????# [ "s#??????????? | | ???????# ##??????### ## ## ###??????????? | | ???????# #????????# ## ## #????????????? | | #??????# #???###### #####????????? | | #??????#### #???# + + #????????? | | ########### #???# #### ^ ### #????????? | | #???# #??## Y## ## #?# ########## | | #####"""### #???# #???#^ ## ## #?# | | ????# #?# ##### #####^ ######## #?# ########## | | ????##+##?# + + ^#??????# #?# #??####### | | ?????# #??# ##### ##### #??????# #?# #### # # | | ?????# #??# #???# #???#p #??????# #?# ## # | | ?????# #??# #???# #???# #??????# ###+### # | | ?????# #### #####+##### #??????# | | ?????# + ^ #??????# | | ?????### ^ #??????# | | ???????# #######+## #####??????#######++## # # | | ???????# #?????# ## #????????????????# ##### ### | | ???????# #?????# ## #????????????????# #???###?? | | ???????# #?????# ## #????????????????#++######### | | ???????# ####### ## #????????????????# ^^ | +----------------------------------------------------+ Best States ------------- Heat Dissipation 59 Energy Generation 18 Energy Capacity 250 Matter Stores 300 Matter Capacity 300 Sight Range 20 Terrain Scan Range 16 Terrain Scan Density 10 Additional Mass Support 9 Base Temperature (-) 100 Armor Coverage 150 Utility Shielding 66 Evasion (%) 64 Target Analysis 5 Core Analysis 6 Recoil Reduction 4 Offensive Hacking 10 Relay Coupler Types 3 Relay Coupler Value 68 Item Schematics ----------------- None Robot Schematics ------------------ None Fabricated ------------ Nothing Repaired ---------- Lgt. Treads | 9% | -10/Materials Studied --------- Ion Engine | -8/Materials | Hacked Flight Unit | -8/Materials | Hacked Cesium-ion Thruster | -8/Materials | Hacked Alien Tech Used ----------------- None Achievements -------------- None Challenges ------------ None Game ------ Seed ArmoredThunderDriver Manual? 0 Play Time 01:07:52 Cumulative 61.0 hours Start 2026.07.22 @ 16:19:56 End 2026.07.22 @ 17:35:45 Sessions 3 Manual Loads 0 Difficulty Rogue Special Mode None Game No. 44 Rogue 43 Adventurer 1 Explorer 0 Win Type - Total 3 Types 2/0/0/1/0/0/0/0/0/0 Lore% 38 Gallery% 43 Achievement% 45 Wizard Run 0 Options --------- Layout 1 ASCII 0 Keyboard 0 Movement Numpad Keybinds 0 Fullscreen 2 Font 32/SmallcapsGlow Map View 50x35 Zoom Use 0% Tactical HUD 0 Map Filters NONE Filters NONE Steam 1 RUN: c71a2323-3d24-4570-b596-a3a8511627c4